bitfinex/quotes_ETHUSD_20250821
["timestamp","ask_amount","ask_price","bid_price","bid_amount"]
[1755788646281,0.99883762,4271.8,4271.7,0.001]
[1755788646451,0.21363762,4271.8,4271.7,0.001]
[1755788646848,0.21363762,4271.9,4271.7,0.3128]
[1755788647258,15.38161394,4272.8,4271.7,0.3128]
[1755788647259,3.0,4272.1,4271.7,0.001]
[1755788647581,0.21363762,4272.0,4271.7,0.001]
[1755788647749,3.0,4272.2,4271.7,0.001]
[1755788647949,0.316,4271.8,4271.7,0.001]
[1755788648280,16.87761394,4271.8,4271.7,0.001]
[1755788648458,3.0,4271.7,4271.3,0.001]
[1755788648656,0.316,4271.4,4270.0,9.99541865]
[1755788648868,3.0,4270.9,4270.0,11.04183052]
[1755788649072,1.23617161,4273.1,4270.2,2.34181068]
[1755788649270,0.2134346,4273.4,4270.1,2.9167]
[1755788649271,0.2134346,4273.4,4272.1,13.56161394]
[1755788649448,0.02,4273.8,4273.3,0.3052]
[1755788649646,0.02,4273.8,4273.4,3.67342405]
[1755788649967,0.002,4275.2,4273.7,0.3052]
[1755788650282,0.002,4275.2,4273.8,0.60324099]
[1755788650283,0.0192,4274.8,4273.8,0.60324099]
[1755788650583,0.0192,4274.8,4273.9,0.28798671]
[1755788650781,0.0192,4274.8,4274.0,0.13108356]
[1755788650952,0.0192,4274.8,4274.1,0.13108356]
[1755788651279,0.0192,4274.8,4274.2,0.13108356]
[1755788651581,0.0192,4274.8,4273.4,6.123]
[1755788651582,0.0192,4274.8,4274.3,0.13108356]
[1755788651797,0.0192,4274.8,4273.4,1.801]
[1755788651798,0.4573,4274.7,4274.4,0.13108356]
[1755788651966,0.4573,4274.6,4274.5,0.13108356]
[1755788652167,0.7733,4274.6,4272.5,1.801]
[1755788652497,0.0192,4274.8,4272.8,0.4487]
[1755788652671,0.0192,4274.8,4272.6,2.13556667]
[1755788652672,11.21840772,4274.7,4272.9,0.15446502]
[1755788652877,11.21840772,4274.7,4273.0,0.34950962]
[1755788652878,34.7803,4274.6,4273.0,0.34950962]
[1755788653079,3.0,4274.4,4273.1,0.34950962]
[1755788653386,3.0,4274.4,4273.2,0.37291128]
[1755788653387,1.8,4274.4,4273.2,0.37291128]
[1755788653561,1.8,4274.4,4273.3,0.37291073]
[1755788653766,1.8,4274.4,4273.4,0.34950962]
[1755788653962,1.8,4274.4,4273.5,0.34950962]
[1755788654197,0.4573,4274.3,4273.6,0.34950962]
[1755788654496,0.4573,4274.3,4272.6,1.801]
[1755788654497,0.4573,4274.3,4273.7,0.34950962]
[1755788654697,0.316,4273.8,4272.7,0.0234044]
[1755788654869,0.316,4273.8,4272.7,0.25071484]
[1755788655518,1.8,4274.4,4272.7,0.25071484]
[1755788655807,1.8,4274.4,4272.9,0.66]
[1755788656099,1.8,4274.4,4272.8,0.4487]
[1755788656100,1.8,4274.4,4273.0,0.47210276]
[1755788656607,1.8,4274.4,4273.0,0.4487]
[1755788656806,1.8,4274.4,4272.7,0.22731044]
[1755788656964,3.0,4274.2,4272.7,0.22731044]
[1755788657164,0.4573,4274.3,4272.8,0.02340385]
[1755788657588,1.8,4274.4,4272.8,0.47210385]
[1755788657787,0.002,4276.1,4272.9,0.66]
[1755788657788,0.4573,4274.9,4272.9,0.66]
[1755788657990,0.4573,4274.9,4273.0,2.49957388]
[1755788658185,0.4573,4274.9,4273.0,0.60804419]
[1755788658386,0.4573,4274.9,4273.1,0.4487]
[1755788658616,1.8,4275.1,4273.2,3.0235666]
[1755788658771,1.8,4275.1,4273.4,0.66]
[1755788658977,1.8,4275.1,4273.5,2.36761019]
[1755788659199,1.8,4275.1,4273.5,2.81631019]
[1755788659404,3.0,4274.5,4273.5,0.02340002]
[1755788659574,0.4573,4274.7,4273.1,1.8]
[1755788659774,0.4573,4274.7,4273.3,0.4487]
[1755788660116,0.4573,4274.7,4273.1,1.8]
[1755788660325,3.0,4274.5,4273.1,1.8]
[1755788660499,0.4573,4274.4,4273.1,1.8]
[1755788661018,3.0,4274.3,4273.1,1.8]
[1755788661221,0.4573,4274.2,4273.1,1.8]
[1755788661367,0.4573,4274.2,4271.9,3.4487]
[1755788661576,10.76110772,4273.9,4272.3,1.8]
[1755788661898,0.4573,4274.2,4272.4,0.02340604]
[1755788662096,3.4573,4274.2,4272.3,2.2487]
[1755788662274,3.4573,4274.2,4272.3,2.0787]
[1755788662275,3.0,4274.2,4272.3,2.0787]
[1755788662475,0.4573,4274.1,4272.3,2.0787]
[1755788662685,3.0,4273.7,4272.4,0.20787]
[1755788662918,3.4573,4273.7,4272.4,0.20787]
[1755788663704,3.4573,4273.7,4272.3,1.63]
[1755788663705,3.0,4273.5,4272.3,1.63]
[1755788663889,4.8,4273.5,4271.8,0.021]
[1755788665500,4.8,4273.5,4271.9,0.02340878]
[1755788665706,3.0,4273.3,4272.3,0.001]
[1755788665898,11.07710772,4272.4,4272.3,0.001]
[1755788666097,14.07710772,4272.4,4272.3,0.001]
[1755788666273,14.53440772,4272.4,4272.3,0.001]
[1755788667305,3.316,4272.4,4272.3,0.001]
[1755788667609,0.4573,4273.7,4272.3,0.3062]
[1755788667992,0.4573,4273.7,4272.3,0.001]
[1755788668905,4.339,4273.6,4272.3,0.001]
[1755788669295,0.4573,4273.7,4272.3,0.02440659]
[1755788669605,4.7923,4273.7,4272.3,0.02440659]
[1755788669786,4.333,4273.8,4272.4,0.4487]
[1755788669980,4.333,4273.8,4272.5,0.0234055]
[1755788670281,4.333,4273.8,4272.4,0.4487]
[1755788670484,0.4573,4273.7,4272.3,0.001]
[1755788672572,4.324,4273.6,4272.3,0.001]
[1755788672772,0.4573,4273.7,4272.3,0.001]
[1755788673013,1.8,4274.1,4272.5,0.66]
[1755788673501,4.8,4274.1,4272.5,0.66]
[1755788673922,0.0212,4274.8,4272.7,0.66]
[1755788674124,0.0212,4274.8,4272.9,3.66]
[1755788674419,0.0212,4274.8,4272.8,5.10831435]
[1755788674420,0.4785,4274.8,4273.1,0.66]
[1755788675285,0.4785,4274.8,4273.0,0.4487]
[1755788675491,3.4785,4274.8,4272.8,0.3132105]
[1755788675699,0.4573,4274.7,4272.8,0.3132105]
[1755788676211,3.0,4274.1,4272.8,0.02]
[1755788676530,36.5783,4274.0,4272.8,0.02]
[1755788676811,0.316,4272.9,4272.8,0.02]
[1755788677175,0.7733,4272.9,4272.8,0.02]
[1755788677507,0.316,4272.9,4272.8,0.02]
[1755788677706,0.4594,4273.4,4272.8,0.02]
[1755788678985,0.2991,4272.9,4272.8,0.02]
[1755788679181,0.4594,4273.4,4272.8,0.02]
[1755788679879,0.2991,4272.9,4272.8,0.02]
[1755788681109,0.7585,4272.9,4272.8,0.02]
[1755788682595,0.2991,4272.9,4272.8,0.02]
[1755788683179,0.7585,4272.9,4272.8,0.02]
[1755788684580,31.4185,4272.9,4272.8,0.02]
[1755788684915,34.4185,4272.9,4272.8,0.02]
[1755788685283,4.4185,4272.9,4272.8,0.02]
[1755788685815,3.7585,4272.9,4272.8,0.02]
[1755788686195,8.0605,4272.9,4272.8,0.02]
[1755788686620,8.7205,4272.9,4272.8,0.02]
[1755788686992,3.66,4272.8,4271.8,0.02]
[1755788687213,3.2991,4272.4,4271.8,0.02]
[1755788687423,48.35920772,4272.4,4271.8,0.02]
[1755788687720,3.0,4272.3,4271.8,0.02]
[1755788688021,1.8,4272.2,4271.8,0.02]
[1755788688220,0.2991,4271.9,4271.8,0.02]
[1755788688396,38.2551,4271.9,4271.8,0.02]
[1755788688599,38.7145,4271.9,4271.8,0.02]
[1755788688997,8.7145,4271.9,4271.8,0.02]
[1755788689202,13.76110772,4270.9,4270.8,0.02]
[1755788689392,18.35520772,4270.9,4270.8,0.02]
[1755788689813,18.81460772,4270.9,4270.8,0.02]
[1755788690033,3.0,4270.9,4270.8,0.02]
[1755788690329,49.47360772,4270.9,4270.8,0.02]
[1755788690638,49.47360772,4270.9,4269.8,0.02]
[1755788690639,33.66,4270.8,4269.8,0.02]
[1755788690928,0.2991,4270.1,4269.8,0.02]
[1755788691104,8.0565,4270.1,4269.8,0.02]
[1755788691939,38.7165,4270.1,4269.8,0.02]
[1755788692386,38.7165,4270.1,4268.8,0.02]
[1755788692387,3.66,4270.0,4268.8,0.02]
[1755788692590,0.66,4269.3,4268.8,0.02]
[1755788692812,5.629,4269.9,4268.8,0.02]
[1755788692813,11.72020772,4268.9,4268.8,0.02]
[1755788692999,50.82020772,4268.9,4268.8,0.02]
[1755788693203,46.32060772,4268.9,4268.8,0.02]
[1755788693412,39.8575,4268.9,4268.8,0.02]
[1755788693598,5.1001,4268.9,4268.8,0.02]
[1755788693817,9.098,4268.9,4268.8,0.02]
[1755788694339,50.61760772,4268.9,4268.8,0.02]
[1755788694827,46.98060772,4268.9,4268.8,0.02]
[1755788695028,51.27560772,4268.9,4268.8,0.02]
[1755788695343,46.98060772,4268.9,4268.8,0.02]
[1755788695626,9.095,4268.9,4268.8,0.02]
[1755788696726,4.801,4268.9,4268.8,0.02]
[1755788696929,9.095,4268.9,4268.8,0.02]
[1755788697119,9.3941,4268.9,4268.8,0.02]
[1755788697432,9.8535,4268.9,4268.8,0.02]
[1755788697729,9.8527,4268.9,4268.8,0.02]
[1755788699295,4.8002,4268.9,4268.8,0.02]
[1755788699496,9.0832,4268.9,4268.8,0.02]
[1755788700125,9.8417,4268.9,4268.8,0.02]
[1755788700294,4.8002,4268.9,4268.8,0.02]
[1755788700496,10.76110772,4269.5,4268.8,0.3318]
[1755788700816,30.0,4269.4,4268.8,0.3328]
[1755788701015,7.281,4269.3,4268.8,0.021]
[1755788701325,10.76110772,4269.5,4268.8,0.3328]
[1755788701537,3.0,4269.3,4268.8,0.021]
[1755788701733,4.28,4269.2,4268.8,0.021]
[1755788701940,0.7585,4268.9,4268.8,0.021]
[1755788702106,18.80060772,4268.9,4268.8,0.021]
[1755788702306,3.0,4268.9,4268.8,0.021]
[1755788702740,7.28,4268.9,4268.8,0.021]
[1755788703040,38.0385,4268.9,4268.8,0.021]
[1755788703401,33.7585,4268.9,4268.8,0.021]
[1755788703602,38.0385,4268.9,4268.8,0.021]
[1755788703805,33.0,4268.9,4268.8,0.021]
[1755788704026,3.0,4268.9,4268.8,0.021]
[1755788704227,4.279,4268.9,4268.8,0.3328]
[1755788704551,1.802,4269.6,4268.8,0.3328]
[1755788704718,4.279,4269.5,4268.8,0.3328]
[1755788704918,4.279,4269.4,4268.8,0.3328]
[1755788705150,0.2991,4268.9,4268.8,0.021]
[1755788705312,4.278,4268.9,4268.8,0.021]
[1755788705512,5.0365,4268.9,4268.0,0.003]
[1755788705916,31.802,4268.8,4268.0,0.003]
[1755788706112,4.277,4268.7,4268.0,0.003]
[1755788706454,1.802,4268.8,4268.0,0.003]
[1755788706846,4.274,4268.7,4268.0,0.003]
[1755788707359,1.802,4268.8,4268.0,0.003]
[1755788707528,5.632,4270.9,4268.6,0.3118]
[1755788707529,4.273,4268.9,4268.6,0.3118]
[1755788707715,4.273,4269.1,4268.7,0.469]
[1755788707912,4.273,4269.2,4268.7,0.469]
[1755788708145,1.802,4269.5,4268.0,0.003]
[1755788708146,4.273,4269.1,4268.0,0.472]
[1755788708324,4.273,4269.0,4268.0,0.003]
[1755788708522,4.272,4268.9,4268.0,0.003]
[1755788708770,3.0,4268.8,4268.0,0.003]
[1755788708915,33.4743,4268.8,4268.0,0.003]
[1755788709118,3.0,4268.6,4268.0,0.003]
[1755788709360,34.273,4268.5,4268.0,0.003]
[1755788709558,4.273,4268.5,4268.0,0.003]
[1755788709919,0.4743,4268.4,4268.0,0.003]
[1755788710232,0.2997,4268.1,4268.0,0.003]
[1755788710433,4.5687,4268.1,4268.0,0.003]
[1755788710748,5.043,4268.1,4268.0,0.003]
[1755788710957,38.043,4268.1,4268.0,0.003]
[1755788711550,3.0,4268.0,4266.2,0.469]
[1755788711766,1.802,4267.9,4266.2,0.469]
[1755788711971,2.34505077,4264.3,4264.2,0.11171606]
[1755788712267,2.34505077,4264.3,4262.6,0.003]
[1755788712268,4.90240414,4263.2,4262.6,0.003]
[1755788712473,3.0,4263.0,4261.8,0.1424395]
[1755788712676,2.34597532,4262.7,4261.8,0.02]
[1755788712847,3.0,4261.9,4261.8,0.02]
[1755788713036,15.89986552,4261.9,4261.8,0.02]
[1755788713241,13.34943367,4261.9,4261.8,0.02]
[1755788713551,10.03690878,4261.9,4261.8,0.02]
[1755788713753,9.61876827,4261.9,4261.8,0.02]
[1755788713963,3.0,4261.8,4261.1,0.469]
[1755788714131,0.33576827,4261.7,4261.1,0.469]
[1755788714335,0.54520222,4261.6,4261.1,0.469]
[1755788714674,4.489,4261.7,4260.8,0.02]
[1755788714675,10.76110772,4261.2,4260.8,0.02]
[1755788714970,3.66,4261.0,4260.8,0.02]
[1755788715131,30.66,4260.8,4258.8,0.02]
[1755788715337,3.54490444,4260.9,4258.9,0.469]
[1755788715338,0.66,4260.6,4258.9,0.469]
[1755788715530,0.54490444,4260.5,4259.5,0.469]
[1755788715768,5.10190444,4260.4,4258.9,0.469]
[1755788715958,1.802,4261.1,4258.9,0.469]
[1755788715959,18.86301216,4260.3,4258.9,0.469]
[1755788716158,2.22229344,4260.2,4258.9,0.469]
[1755788716492,0.20985949,4260.1,4258.9,0.469]
[1755788716790,1.803,4260.2,4259.9,0.469]
[1755788716991,1.803,4261.0,4260.0,0.469]
[1755788717296,4.556,4261.6,4260.1,0.02347362]
[1755788717440,1.803,4262.1,4260.2,0.469]
[1755788717639,1.803,4262.1,4260.3,0.28398731]
[1755788717640,34.76751831,4262.0,4260.3,0.28398731]
[1755788717951,3.0,4261.1,4259.6,0.469]
[1755788718141,3.0,4260.9,4259.6,0.469]
[1755788718342,3.0,4260.4,4258.9,0.469]
[1755788718586,3.0,4260.2,4259.8,0.021]
[1755788718885,2.01251831,4260.1,4259.8,0.021]
[1755788719033,1.804,4261.1,4259.9,0.469]
[1755788719239,0.2081559,4261.0,4260.0,0.02347417]
[1755788719448,1.804,4261.1,4260.1,0.49247362]
[1755788719648,1.804,4261.8,4260.1,0.49247362]
[1755788719848,5.733108,4263.5,4260.2,0.22964736]
[1755788719849,1.804,4262.2,4260.2,0.22964736]
[1755788720049,4.561,4262.1,4260.3,0.49247252]
[1755788720248,4.563,4262.0,4260.3,0.469]
[1755788720552,0.02,4262.8,4260.4,0.68347197]
[1755788720750,0.02,4262.8,4260.6,0.66]
[1755788720947,0.02,4262.8,4260.8,3.0]
[1755788721152,0.02,4262.8,4260.2,0.22964736]
[1755788721153,4.584,4262.8,4260.9,1.2254]
[1755788721382,2.9992,4262.6,4260.9,0.469]
[1755788721698,10.76110772,4262.0,4260.3,0.469]
[1755788721978,36.57596798,4261.9,4260.3,0.469]
[1755788722183,30.20796798,4261.8,4260.3,0.469]
[1755788722344,0.20796798,4261.7,4260.3,0.469]
[1755788722548,6.368,4261.9,4259.8,0.021]
[1755788722549,10.76110772,4261.3,4259.8,0.021]
[1755788722779,34.562,4261.2,4259.8,0.021]
[1755788722984,32.01192138,4261.1,4259.8,0.021]
[1755788723189,34.76892138,4261.0,4259.8,0.021]
[1755788723374,3.0,4260.8,4259.8,0.021]
[1755788723575,1.804,4261.1,4259.9,0.469]
[1755788723780,6.368,4261.8,4260.0,1.82747417]
[1755788723953,4.564,4262.1,4260.1,0.70074742]
[1755788724155,4.564,4262.1,4260.2,0.469]
[1755788724390,3.0,4262.0,4260.2,0.469]
[1755788724750,3.0,4261.8,4260.2,0.469]
[1755788724996,3.0,4262.0,4260.2,0.469]
[1755788725288,0.02,4261.8,4260.2,0.469]
[1755788725887,3.0,4261.6,4260.2,0.71947474]
[1755788726185,0.02,4261.8,4260.3,0.02347252]
[1755788726374,0.02,4261.8,4260.4,0.469]
[1755788727579,0.02,4261.8,4260.5,0.02347142]
[1755788727787,0.02,4261.8,4260.6,2.81606964]
[1755788727973,0.02,4261.8,4260.7,0.77642443]
[1755788728174,0.02,4261.8,4260.8,2.274]
[1755788728412,0.02,4261.8,4261.0,2.34686636]
[1755788728582,0.02,4261.8,4261.1,0.02346811]
[1755788728783,0.02,4261.8,4261.2,0.469]
[1755788729905,0.02,4262.8,4261.2,0.469]
[1755788730279,3.0,4262.5,4261.2,0.469]
[1755788730624,3.0,4262.3,4261.2,0.469]
[1755788730811,4.543,4262.5,4261.2,0.469]
[1755788730983,0.02,4261.8,4261.2,0.469]
[1755788731813,0.02,4261.8,4260.8,1.825]
[1755788732116,0.12499653,4261.7,4260.8,1.825]
[1755788732278,0.12499653,4261.6,4260.8,1.825]
[1755788732614,0.12499653,4261.5,4260.9,0.49246922]
[1755788732913,0.02,4261.8,4260.9,0.469]
[1755788732914,0.12510135,4261.7,4260.9,0.469]
[1755788733131,0.12510135,4261.6,4260.9,0.469]
[1755788733280,0.12510135,4261.5,4260.9,0.469]
[1755788733480,0.12510135,4261.4,4260.9,0.469]
[1755788733714,0.12510135,4261.7,4260.9,0.469]
[1755788733883,0.12510135,4261.6,4260.9,0.469]
[1755788734078,0.12510135,4261.5,4260.8,0.02]
[1755788734280,0.12510135,4261.4,4260.8,0.02]
[1755788734496,0.12510135,4261.3,4260.8,0.02]
[1755788734696,0.12510135,4261.2,4260.8,0.02]
[1755788734916,0.12510135,4261.1,4260.8,0.02]
[1755788735121,0.12510135,4261.0,4260.8,0.02]
[1755788735327,0.12510135,4260.9,4260.8,0.02]
[1755788736199,33.33376657,4260.9,4260.8,0.021]
[1755788736399,37.85476657,4260.9,4260.8,0.021]
[1755788736731,3.33376657,4260.9,4260.8,0.021]
[1755788737306,0.33376657,4260.9,4260.8,0.49]
[1755788738328,0.33376657,4260.9,4260.8,0.021]
[1755788738697,1.805,4261.4,4260.8,0.468]
[1755788738898,0.33653911,4261.3,4260.8,0.468]
[1755788739098,0.33653911,4261.2,4260.8,0.021]
[1755788739336,0.66,4262.7,4260.8,0.021]
[1755788739337,0.33653911,4261.1,4260.9,0.447]
[1755788739511,0.33653911,4261.0,4260.8,0.021]
[1755788739707,0.33653911,4260.9,4260.8,0.021]
[1755788739910,0.12620524,4260.9,4260.8,0.021]
[1755788740508,0.12620524,4260.9,4260.8,0.468]
[1755788740899,0.33711334,4261.6,4260.8,0.468]
[1755788741098,1.805,4262.2,4260.8,0.468]
[1755788741099,0.33711334,4261.5,4260.8,0.468]
[1755788741334,0.33711334,4261.4,4260.8,0.468]
[1755788741640,0.33711334,4261.3,4260.8,0.468]
[1755788741835,0.33711334,4261.2,4260.8,0.021]
[1755788742043,0.33711334,4261.1,4260.8,0.021]
[1755788742242,1.805,4262.2,4260.9,0.447]
[1755788742243,0.33711334,4261.0,4260.9,0.447]
[1755788742632,0.33711334,4261.0,4260.8,0.021]
[1755788742833,0.33711334,4260.9,4260.8,0.468]
[1755788743020,0.33711334,4260.9,4260.8,0.021]
[1755788744011,0.8229561,4260.9,4260.8,0.021]
[1755788744218,0.33711334,4260.9,4260.8,0.021]
[1755788744718,0.33711334,4260.9,4260.8,0.468]
[1755788744911,0.33856165,4260.9,4260.8,0.468]
[1755788745125,0.12540524,4260.9,4260.8,0.468]
[1755788745420,0.12540524,4260.9,4260.8,0.021]
[1755788745675,0.33779928,4260.9,4260.8,0.021]
[1755788745825,0.12540524,4260.9,4260.8,0.468]
[1755788747042,0.33783488,4260.9,4260.8,0.021]
[1755788747246,0.82367764,4260.9,4260.8,0.021]
[1755788747818,0.48584276,4260.9,4260.8,0.021]
[1755788748018,0.69824514,4260.9,4260.8,0.021]
[1755788749252,107.78,4260.0,4259.8,0.02]
[1755788749422,44.74562645,4259.9,4257.7,0.39636624]
[1755788749627,44.74562645,4259.9,4256.6,1.747]
[1755788749628,13.76110772,4257.8,4256.6,1.747]
[1755788749829,1.22301358,4257.1,4256.6,1.747]
[1755788750028,1.22301358,4256.9,4256.6,1.747]
[1755788750227,0.70215377,4256.9,4256.6,1.747]
[1755788750448,0.21240238,4256.9,4256.6,1.747]
[1755788750662,0.70215377,4256.9,4256.6,1.747]
[1755788751145,0.21240238,4256.9,4256.6,1.747]
[1755788751345,0.21240238,4257.1,4256.6,1.747]
[1755788751549,13.76110772,4256.9,4256.6,1.747]
[1755788751737,13.76110772,4256.9,4253.8,0.02]
[1755788751738,13.76110772,4256.3,4254.1,0.447]
[1755788751940,44.46326149,4256.3,4254.1,0.447]
[1755788752142,3.66,4256.2,4254.1,0.447]
[1755788752317,0.70215377,4256.1,4254.2,0.02350618]
[1755788752653,30.23587506,4256.0,4254.3,0.447]
[1755788752854,3.0,4256.2,4253.8,1.826]
[1755788752855,33.70215377,4255.9,4253.8,1.826]
[1755788753177,10.76110772,4255.2,4253.8,0.02]
[1755788753323,0.02347268,4255.1,4253.8,0.467]
[1755788753518,3.0,4254.9,4253.8,0.467]
[1755788753723,0.02347268,4254.9,4253.8,0.467]
[1755788753931,0.02347268,4255.1,4253.8,0.467]
[1755788754145,0.02347268,4255.1,4254.3,0.447]
[1755788754334,0.02347268,4256.0,4254.9,0.447]
[1755788754747,3.0,4256.7,4255.0,0.02350176]
[1755788755063,30.02347268,4256.6,4255.1,0.447]
[1755788755218,1.807,4256.9,4255.2,0.2254]
[1755788755561,1.807,4256.9,4254.9,1.807]
[1755788755562,0.66,4256.7,4254.9,1.807]
[1755788755858,3.0,4256.5,4254.9,1.807]
[1755788756154,30.23314081,4256.6,4254.9,1.807]
[1755788756155,3.0,4256.3,4254.9,2.254]
[1755788756456,3.0,4256.1,4254.9,2.254]
[1755788756655,0.02347268,4256.0,4254.9,2.254]
[1755788756856,0.02347268,4256.0,4254.2,1.807]
[1755788757056,3.0,4255.8,4254.5,0.447]
[1755788757266,0.02347268,4255.7,4254.5,0.447]
[1755788757448,0.02347268,4256.4,4254.5,0.447]
[1755788757649,3.0,4256.2,4254.5,0.447]
[1755788757853,3.0,4256.0,4254.5,0.447]
[1755788758026,3.0,4255.8,4254.5,0.447]
[1755788758231,0.02347268,4255.7,4254.5,0.447]
[1755788759171,0.02347268,4255.9,4254.5,0.447]
[1755788759660,0.02347268,4256.0,4254.9,0.447]
[1755788759864,0.73035368,4256.0,4254.9,0.447]
[1755788760042,0.02347268,4256.0,4255.0,1.807]
[1755788760225,0.706816,4256.5,4255.1,0.69790121]
[1755788760427,0.706816,4256.5,4255.2,0.447]
[1755788760629,1.827,4256.8,4255.3,0.0235001]
[1755788760864,1.827,4256.8,4255.4,0.447]
[1755788760865,0.02347268,4256.7,4255.4,0.447]
[1755788761064,0.02347268,4256.7,4253.8,5.4884374]
[1755788761065,30.0,4256.6,4254.8,0.467]
[1755788761373,3.0,4256.4,4254.9,0.02350231]
[1755788761680,0.02347268,4256.5,4255.0,0.70025199]
[1755788761681,3.0,4256.5,4255.0,0.70025199]
[1755788761826,1.827,4256.8,4255.1,0.447]
[1755788762026,0.02347268,4256.7,4255.1,0.447]
[1755788763041,0.02,4256.8,4255.1,0.447]
[1755788763229,0.02347268,4256.7,4255.1,0.447]
[1755788764134,0.02347268,4256.7,4255.2,0.02350065]
[1755788764335,0.02347268,4256.7,4255.3,0.447]
[1755788764559,0.02,4256.8,4255.3,0.447]
[1755788764560,0.02,4256.8,4255.4,0.02349955]
[1755788764756,0.02347268,4256.7,4255.5,0.447]
[1755788764990,0.02347268,4256.7,4255.6,0.02349844]
[1755788765190,0.02347268,4256.7,4255.7,2.254]
[1755788765356,0.02347268,4256.7,4255.8,0.25124718]
[1755788765562,0.02,4256.8,4255.9,0.447]
[1755788765763,0.02,4256.8,4256.0,0.02349624]
[1755788766186,0.02,4256.8,4256.1,0.447]
[1755788766503,0.02,4256.8,4256.2,0.02349513]
[1755788766698,0.02,4256.8,4255.8,0.22774984]
[1755788766699,0.02,4256.8,4256.3,0.447]
[1755788767301,0.02,4256.8,4256.4,0.02349403]
[1755788767597,0.02,4256.8,4256.5,2.254]
[1755788767799,0.02,4256.8,4256.6,0.69444232]
[1755788767999,0.02,4257.8,4256.8,2.34918136]
[1755788768303,0.02,4257.8,4256.9,0.02349127]
[1755788768511,0.02,4258.8,4257.7,2.34867439]
[1755788768671,0.02,4258.8,4257.8,2.2502]
[1755788768868,0.02,4258.8,4258.1,2.34846385]
[1755788769072,0.02,4258.8,4257.9,0.24850575]
[1755788769073,0.02,4258.8,4257.9,0.66822]
[1755788769385,0.0192,4258.8,4257.9,0.66822]
[1755788770169,0.0192,4258.8,4258.0,0.0234852]
[1755788770469,0.002,4258.7,4258.0,0.4666852]
[1755788770801,0.002,4258.7,4258.1,0.48472654]
[1755788771168,0.002,4258.7,4258.0,0.4432]
[1755788772087,0.02547268,4258.7,4257.8,1.807]
[1755788772467,0.02547268,4258.7,4256.6,0.2277494]
[1755788772468,3.02547268,4258.7,4256.6,0.2277494]
[1755788772669,3.0,4258.5,4256.8,0.4432]
[1755788772903,3.0,4258.3,4256.8,0.4432]
[1755788773118,3.0,4258.1,4256.9,0.02349127]
[1755788773283,6.416,4258.6,4256.8,0.4432]
[1755788773284,0.02347268,4258.0,4256.8,0.4432]
[1755788773482,0.002,4258.3,4256.8,0.4432]
[1755788773705,0.02547268,4258.3,4256.8,0.4432]
[1755788774303,3.0,4258.1,4256.8,0.4432]
[1755788774490,0.02347268,4258.0,4256.8,0.4432]
[1755788774890,0.706547,4258.2,4256.9,0.02349127]
[1755788775095,0.002,4258.3,4256.9,0.02349127]
[1755788775292,0.02347268,4258.2,4256.8,0.4432]
[1755788775511,3.0,4258.0,4256.8,0.02]
[1755788775796,3.0,4257.8,4256.8,0.02]
[1755788776121,0.02347268,4257.7,4256.8,0.02]
[1755788776322,33.02347268,4257.7,4256.8,0.02]
[1755788776472,1.807,4257.8,4256.8,0.02]
[1755788776674,0.02347268,4257.7,4256.8,0.02]
[1755788777088,0.02347268,4257.7,4256.9,0.4432]
[1755788777411,0.02347268,4258.2,4256.9,0.4432]
[1755788777778,0.02347268,4258.2,4256.9,0.67256929]
[1755788778274,0.02347268,4258.2,4257.0,0.4432]
[1755788778475,0.002,4258.3,4257.1,0.02349016]
[1755788778701,0.002,4258.3,4257.2,0.4432]
[1755788779690,0.002,4258.3,4257.3,0.02348906]
[1755788779902,0.002,4258.3,4257.4,2.2502]
[1755788780790,0.002,4258.3,4257.4,1.807]
[1755788781510,0.002,4258.3,4257.5,0.46668796]
[1755788781811,0.002,4258.3,4257.5,2.27368796]
[1755788782022,0.002,4258.3,4257.5,2.2502]
[1755788782974,0.002,4258.3,4257.6,0.46668741]
[1755788783178,0.002,4258.3,4257.7,0.22736874]
[1755788783411,0.002,4258.3,4257.8,0.0234863]
[1755788783910,0.002,4258.3,4257.3,0.4432]
[1755788784207,3.0,4258.1,4256.8,0.02]
[1755788784395,1.83047268,4258.0,4256.8,0.02]
[1755788784727,1.83047268,4258.0,4256.9,0.4432]
[1755788784728,1.807,4258.0,4256.9,0.4432]
[1755788785197,0.02347268,4257.9,4256.9,0.4432]
[1755788786015,0.002,4258.3,4256.9,0.4432]
[1755788786223,0.02547268,4258.3,4257.0,0.02349072]
[1755788786495,0.002,4258.3,4257.1,0.4432]
[1755788786695,0.002,4258.3,4257.1,2.2502]
[1755788786983,0.002,4258.3,4257.2,0.22502]
[1755788787396,0.002,4258.3,4257.2,0.66822]
[1755788787572,0.002,4258.3,4257.3,0.02348906]
[1755788787774,0.002,4258.3,4257.4,0.4432]
[1755788787974,0.002,4258.3,4257.5,0.02348796]